Cogmind - Beta 13 @@@ ROGUE MODE // 2024.04.05 @ 10:41:14 Player: Dosh Result: Core destroyed Performance ------------- Evolutions (9) 4500 Regions Visited (24) 4800 Robots Destroyed (185) 925 Value Destroyed (6905) 6905 Prototype IDs (39) 780 Alien Tech Used (0) 0 Bonus (3434) 3434 TOTAL SCORE: 21344 Bonus ------- High Alert Combat Kills 513 Follower Combat Kills 47 Entered Garrisons 600 Used RIF Installer 1000 Entered DSFs 1000 Aligned with FarCom 300 Friendly Fire -26 Cogmind --------- Core Integrity 0/1600 Matter 246/300 Energy 6/100 System Corruption 21% Temperature Cool (0) Movement Hovering (60) Location -1/Access Parts ------- > --- POWER (2) -------- (None) > --- PROPULSION (7) --- Combat Linear Gravjet > --- UTILITY (12) ----- Long-range Terrain Scanner Advanced Terrain Scan Processor Layered Medium Armor Plating > --- WEAPON (4) ------- (None) > --- INVENTORY (5) ---- Quantum Reactor Biometal Medium Treads Precision Energy Filter Layered Medium Armor Plating Layered Medium Armor Plating Peak State ------------ > --- POWER ------------ Neutrino Core Reinforced Fission Core > --- PROPULSION ------- Heavy Treads Improved Heavy Treads Improved Heavy Treads > --- UTILITY ---------- Advanced Coolant Injector High-capacity Storage Unit Improved Propulsion Shielding Improved Thermal Shield Improved Remote Shield Advanced Drone Bay Stealth Drone Bay > --- WEAPON ----------- Compact HERF Cannon KE Penetrator KE Penetrator KE Penetrator > --- INVENTORY -------- Deuterium Engine Light Antimatter Reactor Matter Compressor Improved Sensor Array Advanced Terrain Scan Processor Makeshift Cloaking Device Improved Hacking Suite Authchip [Propulsion] Authchip [Armor] Relay Coupler [NC] System Restoration Module Arc Thrower Smartbomb Launcher Remote Datajack Powered Hammer Master Tearclaws [Rating: 138] Favorites ----------- Power Light Nuclear Core Engine Improved Ion Engine Power Core Light Nuclear Core Reactor Light Antimatter Reactor Propulsion Light Treads Treads Light Treads Leg Centrium Leg Wheel Armored Huge Wheel Hover Unit Antigrav Array Flight Unit Q-thruster Utility High-capacity Storage Unit Device Cooling System Storage High-capacity Storage Unit Processor Advanced Targeting Computer Hackware Hacking Suite Protection Improved Medium Armor Plating Weapon Advanced Beam Cannon Energy Gun Arc Thrower Energy Cannon Advanced Beam Cannon Ballistic Gun KE Penetrator Ballistic Cannon Heavy Linear Accelerator Launcher Smartbomb Launcher Special Weapon Remote Datajack Impact Weapon Powered Hammer Slashing Weapon Master Tearclaws Build | -11 -10 -10 -9 -9 -9 -8 -8 -7 -7 -7 -6 -6 -5 -5 -4 -4 -4 -3 -3 -2 -2 -1 -1 -1 ------- Run | Yrd Mat Min Mat Min Exi Min Mat Fac Gar Fac Fac DSF Fac Gar Fac Upp Upp Res Tes Res DSF Acc Gar Acc Slots Evolved 18 | . . . 2 . . . 2 2 . . 2 . 2 . 2 . . 2 . 2 . 2 . . Power 1 | . . . . . . . . . . . . . . . 1 . . . . . . . . . Propulsion 5 | . . . 1 . . . . 1 . . . . . . . . . 2 . . . 1 . . Utility 10 | . . . 1 . . . 2 1 . . 2 . . . 1 . . . . 2 . 1 . . Weapon 2 | . . . . . . . . . . . . . 2 . . . . . . . . . . . Parts Attached 200 | 6 8 1 22 10 2 1 22 4 13 3 2 7 2 13 15 8 5 25 3 . 2 3 . 23 Power 19 | 1 . 1 1 1 . . 2 1 1 . . . . 2 3 . . 3 . . 1 . . 2 Engine 8 | 1 . 1 1 1 . . . . 1 . . . . 2 1 . . . . . . . . . Core 5 | . . . . . . . 2 1 . . . . . . 2 . . . . . . . . . Reactor 6 | . . . . . . . . . . . . . . . . . . 3 . . 1 . . 2 Propulsion 60 | 2 2 . 10 5 . . 11 1 1 2 . 4 . 2 1 1 1 7 . . . 1 . 9 Treads 42 | 2 2 . 10 4 . . 11 1 1 . . 4 . 2 1 1 1 1 . . . . . 1 Leg 1 | . . . . . . . . . . . . . . . . . . . . . . . . 1 Wheel 3 | . . . . 1 . . . . . 2 . . . . . . . . . . . . . . Hover 5 | . . . . . . . . . . . . . . . . . . . . . . . . 5 Flight 9 | . . . . . . . . . . . . . . . . . . 6 . . . 1 . 2 Utility 69 | 1 4 . 5 . 1 1 5 2 4 1 2 2 1 4 8 4 1 8 3 . 1 2 . 9 Device 30 | . . . 3 . . . 2 1 2 . 1 1 1 3 7 4 . 1 1 . . 1 . 2 Storage 4 | 1 3 . . . . . . . . . . . . . . . . . . . . . . . Processor 8 | . 1 . . . 1 1 . . . . . . . . . . . 4 . . . . . 1 Hackware 8 | . . . . . . . . 1 . . 1 . . . . . . 3 2 . . 1 . . Protection 19 | . . . 2 . . . 3 . 2 1 . 1 . 1 1 . 1 . . . 1 . . 6 Artifact . | . . . . . . . . . . . . . . . . . . . . . . . . . Weapon 52 | 2 2 . 6 4 1 . 4 . 7 . . 1 1 5 3 3 3 7 . . . . . 3 Energy Gun 1 | . . . . . . . . . . . . . . . . . 1 . . . . . . . Energy Cannon 17 | . . . 4 2 1 . 4 . 1 . . . . . . . . 2 . . . . . 3 Ballistic Gun 15 | 2 2 . 2 . . . . . 2 . . . . . 3 2 1 1 . . . . . . Ballistic Cannon 7 | . . . . . . . . . 2 . . 1 1 3 . . . . . . . . . . Launcher 6 | . . . . 2 . . . . 2 . . . . 1 . 1 . . . . . . . . Special Weapon 2 | . . . . . . . . . . . . . . . . . . 2 . . . . . . Impact Weapon 2 | . . . . . . . . . . . . . . 1 . . . 1 . . . . . . Slashing Weapon 2 | . . . . . . . . . . . . . . . . . 1 1 . . . . . . Piercing Weapon . | . . . . . . . . . . . . . . . . . . . . . . . . . Special Melee Weapon . | . . . . . . . . . . . . . . . . . . . . . . . . . Unidentified Prototypes 6 | . . . 1 . . . . . . . . . . 1 2 . . 1 1 . . . . . Corrupted Parts 2 | . . . . . . . . . . . . . . . . 1 1 . . . . . . . System Corruption 12 | . . . . . . . . . . . . . . . . 9 3 . . . . . . . Parts Lost 65 | . . 1 2 4 . . 1 . 3 1 . 1 . 7 4 7 . 2 . . . 7 14 11 Power 7 | . . 1 . . . . 1 . . . . . . 1 . . . . . . . 2 . 2 Propulsion 18 | . . . . 3 . . . . 1 1 . . . . . 1 . . . . . 3 4 5 Utility 32 | . . . 2 1 . . . . 2 . . 1 . 5 2 4 . 2 . . . 2 8 3 Weapon 8 | . . . . . . . . . . . . . . 1 2 2 . . . . . . 2 1 Highest Loss Streak 21 | . . 1 2 4 . . 1 . 2 1 . 1 . 2 1 6 . 2 . . . 7 21 5 To Critical Strikes . | . . . . . . . . . . . . . . . . . . . . . . . . . Average Slot Usage (%) 86 | . 99 90 99 90 94 100 89 81 94 88 77 74 87 65 73 72 76 74 88 82 83 85 28 29 Engine 5 | . 14 5 11 11 11 11 . . 5 7 6 6 5 4 3 . . . . . . . . . Core 2 | . . . . . . . 8 7 1 . . . . . 6 10 10 5 . . . . . . Treads 23 | . 28 28 33 31 33 33 26 24 28 23 . 2 23 14 10 9 10 8 . . . . . . Device 11 | . . . 10 11 11 11 14 7 14 15 18 13 16 11 21 27 26 17 9 8 8 9 4 . Storage 8 | . 14 14 11 11 11 11 9 7 7 7 6 6 5 5 5 5 5 2 . . . . . . Processor 5 | . 13 14 5 . 5 11 9 7 . . . . . . . . . 3 11 8 8 8 3 3 Hackware 2 | . . . . . . . . 3 7 7 11 13 11 11 7 . . 4 15 17 17 18 11 2 Protection 4 | . . . 5 2 . . 3 7 14 15 13 12 11 3 3 . 4 4 4 4 5 7 . 4 Energy Cannon 9 | . . . 13 21 22 22 17 15 3 . . . . . . . . 1 . . . . . 2 Ballistic Gun 6 | . 28 28 8 . . . . . 4 7 6 3 . . 8 17 15 7 . . . . . . Ballistic Cannon 1 | . . . . . . . . . 2 . . 2 11 10 5 . . . . . . . . . Naked Turns . | . . . . . . . . . . . . . . . . . . . . . . . . . Heaviest Build 133 | 13 49 49 61 60 55 55 79 80 84 83 84 97 126 129 133 125 127 129 40 40 47 46 10 64 Greatest Support 220 | 40 40 40 60 60 60 60 66 88 88 64 56 120 120 162 150 145 150 220 48 48 48 56 16 78 Greatest Overweight (x) 18 | . 1 1 1 18 . . 1 1 1 2 1 3 1 1 . . . 5 . . . . 2 2 Average Overweight (x) . | . . 1 . . . . . . . 1 1 . 1 . . . . . . . . . . . Largest Inventory Capacity 20 | 8 20 20 20 20 20 20 20 20 20 20 20 20 20 20 20 20 20 20 5 5 5 5 5 5 Average Capacity 18 | 7 12 20 20 20 20 20 20 20 20 20 20 20 20 20 20 20 20 14 5 5 5 5 5 5 Most Carried 20 | 3 16 18 20 20 20 20 20 20 20 20 20 20 20 20 20 19 20 19 5 5 5 5 5 5 Average Carried 17 | 1 7 17 18 19 19 19 19 19 19 20 18 19 18 19 17 14 17 12 4 5 5 4 5 4 Final Capacity 20 | 8 20 20 20 20 20 20 20 20 20 20 20 20 20 20 20 20 20 5 5 5 5 5 5 5 Final Carried 20 | 3 15 17 20 20 20 20 20 20 20 20 18 20 20 20 19 16 18 4 5 5 5 5 5 5 Class Distribution -------------------- 46% | Mutant 28% | Scavenger-Mutant 7% | Hacker-Tank 6% | Tank 4% | Scavenger-Tank Dominant Class ---------------- Mutant | -10/Materials Mutant | -10/Mines Scavenger-Mutant | -9/Materials Scavenger-Mutant | -9/Mines Scavenger-Mutant | -9/Exiles Scavenger-Mutant | -8/Mines Mutant | -8/Materials Mutant | -7/Factory Mutant | -7/Garrison Mutant | -7/Factory Hacker-Mutant | -6/Factory Hacker-Mutant | -6/DSF Hacker-Tank | -5/Factory Hacker-Tank | -5/Garrison Scavenger-Tank | -4/Factory Tank | -4/Upper Caves Tank | -4/Upper Caves Scavenger-Tank | -3/Research Hacker-Sprinter | -3/Testing Hacker-Sprinter | -2/Research Hacker-Sprinter | -2/DSF Hacker-Sprinter | -1/Access Hacker-Mutant | -1/Garrison Mutant | -1/Access Resources | -11 -10 -10 -9 -9 -9 -8 -8 -7 -7 -7 -6 -6 -5 -5 -4 -4 -4 -3 -3 -2 -2 -1 -1 -1 ----------- Run | Yrd Mat Min Mat Min Exi Min Mat Fac Gar Fac Fac DSF Fac Gar Fac Upp Upp Res Tes Res DSF Acc Gar Acc Matter Collected 4915 | 241 213 112 442 199 . 27 220 76 290 30 . 120 270 1023 534 508 29 413 30 . . 12 . 126 Remotely . | . . . . . . . . . . . . . . . . . . . . . . . . . Salvage Created 7508 | . 377 154 1180 280 . 76 917 248 528 303 . 446 102 1160 434 693 19 383 39 . . 12 . 157 Parts 371 | . 27 10 74 14 . 6 53 9 35 13 . 22 5 35 14 28 5 7 2 . . . . 12 Haulers Intercepted 11 | . 1 . 4 . . . 6 . . . . . . . . . . . . . . . . . Recyclers Shooed 2 | . . . 2 . . . . . . . . . . . . . . . . . . . . . Parts Field Recycled . | . . . . . . . . . . . . . . . . . . . . . . . . . Retrieved Matter . | . . . . . . . . . . . . . . . . . . . . . . . . . Parts Self-Destructed 25 | . . . . . . . . . . . . . . . . 25 . . . . . . . . Prevented . | . . . . . . . . . . . . . . . . . . . . . . . . . Kills | -11 -10 -10 -9 -9 -9 -8 -8 -7 -7 -7 -6 -6 -5 -5 -4 -4 -4 -3 -3 -2 -2 -1 -1 -1 ------- Run | Yrd Mat Min Mat Min Exi Min Mat Fac Gar Fac Fac DSF Fac Gar Fac Upp Upp Res Tes Res DSF Acc Gar Acc Combat Hostiles Destroyed 165 | . 8 3 22 22 . 4 12 5 22 4 . 8 4 20 9 14 1 3 . . . . . 4 Guns 51 | . 8 3 12 . . . . . 6 4 . 7 . . 1 6 1 3 . . . . . . Cannons 70 | . . . 10 5 . 4 12 4 4 . . 1 4 14 8 . . . . . . . . 4 AOE 43 | . . . . 17 . . . . 12 . . . . 6 . 8 . . . . . . . . Classes Destroyed 22 | . 6 . 3 3 . 1 1 1 . . . 2 1 1 1 1 1 . . . . . . . Worker 4 | . 1 . . 1 . . . . . . . . . . . . . . 1 . . . . 1 Builder 2 | . . . 1 . . . . . . . . . . . . . . . . . . 1 . . Tunneler 1 | . . . . . . 1 . . . . . . . . . . . . . . . . . . Hauler 11 | . 1 . 4 . . . 6 . . . . . . . . . . . . . . . . . Recycler 5 | . . . 1 . . . 2 . . 1 . . . . . . . 1 . . . . . . Mechanic 1 | . . . . . . . . . . . . . . . 1 . . . . . . . . . Operator 5 | . 1 . 1 . . . 2 . . . . . . . . . . . 1 . . . . . Watcher 8 | . 2 . 3 . . . 2 . . . . . 1 . . . . . . . . . . . Swarmer 46 | . 3 . 9 . . 4 3 . 14 . . . . 4 . 5 . . . . . . . 4 Grunt 62 | . 5 3 6 2 . . 3 3 5 3 . 5 3 12 3 7 . 2 . . . . . . Brawler 4 | . . . . 1 . . . 1 . . . . . . 1 1 . . . . . . . . Duelist 1 | . . . . . . . . . . . . . 1 . . . . . . . . . . . Sentry 19 | . . . 7 . . . 4 . 2 1 . . . . 3 1 . 1 . . . . . . Demolisher 2 | . . . . 2 . . . . . . . . . . . . . . . . . . . . Specialist 2 | . . . . . . . . . . . . 2 . . . . . . . . . . . . Hunter 5 | . . . . . . . 2 . . . . . . 3 . . . . . . . . . . Programmer 3 | . . . . . . . . 1 1 . . . . . 1 . . . . . . . . . Heavy 2 | . . . . . . . . . . . . 1 . . 1 . . . . . . . . . Behemoth 1 | . . . . . . . . . . . . . . 1 . . . . . . . . . . Samaritan 2 | . . . . . . . . . . . . . . . . 2 . . . . . . . . Master Thief 1 | . . . . . . . . . . . . . . . . . 1 . . . . . . . Assembled 17 | . . . . 17 . . . . . . . . . . . . . . . . . . . . Best Kill Streak 19 | . 4 2 4 19 . 4 3 4 7 4 . 3 3 7 5 5 1 2 1 . . 1 . 3 Combat Bots Only 19 | . 4 2 4 19 . 4 2 4 7 3 . 3 3 7 5 5 1 2 . . . . . 3 Max Kills in Single Turn 7 | . 1 1 2 7 . 1 1 1 5 2 . 1 2 4 1 6 1 1 1 . . 1 . 1 Gunslinging 1 | . . . 1 . . . . . . . . . . . . . . . . . . . . . Exploded 7 | . . . . 7 . . . . 5 . . . . 4 . 5 . . . . . . . . Melee . | . . . . . . . . . . . . . . . . . . . . . . . . . Uniques/NPCs Destroyed . | . . . . . . . . . . . . . . . . . . . . . . . . . Combat | -11 -10 -10 -9 -9 -9 -8 -8 -7 -7 -7 -6 -6 -5 -5 -4 -4 -4 -3 -3 -2 -2 -1 -1 -1 -------- Run | Yrd Mat Min Mat Min Exi Min Mat Fac Gar Fac Fac DSF Fac Gar Fac Upp Upp Res Tes Res DSF Acc Gar Acc Hostile Shots Fired 1317 | . 32 32 92 42 . 20 60 24 211 12 . 24 16 154 65 99 3 24 . . 3 109 82 213 Missed 449 | . 8 7 30 8 . 2 17 5 79 4 . 9 4 46 17 18 . 6 . . 2 65 26 96 Damage Taken 15585 | . 242 324 787 919 . 143 902 376 1272 56 . 515 349 1883 1128 1264 20 286 . . . 1028 1119 2972 Core 2433 | . 28 59 54 156 . 10 36 44 68 . . 19 . 147 119 18 . . . . . 230 678 767 Absorbed by Shields 689 | . . . . . . . . . 101 24 . 34 . 125 76 165 6 89 . . . . 69 . Reduced by Siege Mode 272 | . . . . . . . . . . . . . . 92 42 134 . 4 . . . . . . Redirected to Shielding 105 | . . . . . . . . . . . . . . . . . . 51 . . . 54 . . Ignored by Resistances 940 | . . . . . . . . . . . . . . 214 286 369 6 65 . . . . . . Regen/Repaired (Parts) 349 | . . . 281 . . . 68 . . . . . . . . . . . . . . . . . Core Remaining (%) 85 | 100 . 65 . . . 45 93 . . 84 . 97 . 85 . . 88 . 100 . 100 . . . Volleys Fired 407 | . 34 16 89 22 . 12 51 16 35 . . 4 10 38 27 22 2 15 . . . . . 14 Largest 4 | . 2 2 2 2 . 2 2 2 2 . . 1 2 2 3 4 3 4 . . . . . 1 Hottest 193 | . 40 40 136 136 . 136 136 133 133 . . 83 166 166 166 149 99 193 . . . . . 120 Shots Fired 910 | . 68 32 178 37 . 24 102 32 78 20 . 50 20 73 63 68 6 45 . . . . . 14 Gun 397 | . 68 32 74 . . . . . 23 20 . 46 . . 34 63 6 31 . . . . . . Cannon 489 | . . . 104 26 . 24 102 32 47 . . 4 20 70 29 3 . 14 . . . . . 14 Launcher 24 | . . . . 11 . . . . 8 . . . . 3 . 2 . . . . . . . . Special . | . . . . . . . . . . . . . . . . . . . . . . . . . Kinetic 534 | . 68 32 74 . . . . . 35 20 . 50 20 70 63 66 6 30 . . . . . . Thermal 337 | . . . 104 26 . 24 102 32 35 . . . . . . . . . . . . . . 14 Explosive 24 | . . . . 11 . . . . 8 . . . . 3 . 2 . . . . . . . . Electromagnetic 15 | . . . . . . . . . . . . . . . . . . 15 . . . . . . Robot Hit Streak 34 | . 12 8 34 3 . 7 20 8 9 13 . 31 6 24 9 19 3 10 . . . . . 3 Robot Miss Streak 11 | . 3 3 11 3 . 3 4 3 3 4 . 4 2 2 3 3 1 2 . . . . . 1 Penetration Max 1 | . . . . . . . . . . . . . . . 1 . . 1 . . . . . . Secondary Targets 6 | . 1 . 3 . . . . . . . . . . . . 2 . . . . . . . . Max Gunslinging Chain 1 | . 1 . 1 . . . . . . . . . . . . 1 . . . . . . . . Autonomous 84 | . . . . . . . . . 17 20 . 47 . . . . . . . . . . . . Shots Hit Robots 595 | . 43 23 108 17 . 13 61 22 37 14 . 41 13 67 39 53 4 32 2 . . 1 . 5 Core Hits 306 | . 23 7 42 40 . 4 26 9 34 7 . 18 4 25 14 31 2 11 1 . . . . 8 Critical Kills 4 | . . . 1 . . . 1 . . . . . . 1 . 1 . . . . . . . . Critical Parts Destroyed 9 | . . . 1 . . . . . . . . . . 5 1 1 . . . . . 1 . . Critical Strikes 23 | . . . 2 . . . 1 . . . . 1 . 12 4 2 . . . . . 1 . . Meltdown 2 | . . . 1 . . . 1 . . . . . . . . . . . . . . . . . Destroy 4 | . . . 1 . . . . . . . . . . . 1 2 . . . . . . . . Blast 10 | . . . . . . . . . . . . 1 . 6 3 . . . . . . . . . Smash 7 | . . . . . . . . . . . . . . 6 . . . . . . . 1 . . Melee Attacks 39 | . . . . . . . . . . . . . . 20 . . . 6 4 . . 9 . . Impact 39 | . . . . . . . . . . . . . . 20 . . . 6 4 . . 9 . . Slashing . | . . . . . . . . . . . . . . . . . . . . . . . . . Piercing . | . . . . . . . . . . . . . . . . . . . . . . . . . Sneak Attacks 2 | . . . . . . . . . . . . . . . . . . . 1 . . 1 . . Combat Hostiles . | . . . . . . . . . . . . . . . . . . . . . . . . . Follow-up Attacks . | . . . . . . . . . . . . . . . . . . . . . . . . . Damage Inflicted 23345 | 3 456 324 1839 1502 . 320 1391 579 1871 427 . 1391 1016 5958 2080 2359 98 1182 177 . . 88 1 283 Guns 6224 | . 452 324 936 . . . . . 328 427 . 1167 . . 517 1344 98 631 . . . . . . Cannons 11278 | . . . 887 340 . 312 1391 549 606 . . 224 1016 3572 1563 218 . 391 . . . . . 209 Explosions 3655 | . . . . 1098 . . . . 912 . . . . 688 . 797 . 160 . . . . . . Melee 1963 | . . . . . . . . . . . . . . 1698 . . . . 177 . . 88 . . Ramming 225 | 3 4 . 16 64 . 8 . 30 25 . . . . . . . . . . . . . 1 74 Kinetic 12885 | . 452 324 936 . . . . . 396 427 . 1391 1016 3572 2080 1562 98 631 . . . . . . Thermal 4386 | . . . 887 340 . 312 1391 549 538 . . . . . . . . 160 . . . . . 209 Explosive 3495 | . . . . 1098 . . . . 912 . . . . 688 . 797 . . . . . . . . Electromagnetic 391 | . . . . . . . . . . . . . . . . . . 391 . . . . . . Impact 1963 | . . . . . . . . . . . . . . 1698 . . . . 177 . . 88 . . Slashing . | . . . . . . . . . . . . . . . . . . . . . . . . . Piercing . | . . . . . . . . . . . . . . . . . . . . . . . . . Highest Corruption 20 | . . . . . . . . . 2 2 . . . . 1 17 20 . . . . . 3 20 Average Corruption 9 | . . . . . . . . . 2 2 . . . . 1 16 17 . . . . . 2 7 Corruption Purged . | . . . . . . . . . . . . . . . . . . . . . . . . . Corruption Blocked . | . . . . . . . . . . . . . . . . . . . . . . . . . Effects 65 | . . . . . . . . . 1 8 . . . . . 36 3 . . . . . 1 16 Message Errors 20 | . . . . . . . . . . 5 . . . . . 10 . . . . . . 1 4 Matter Fused 13 | . . . . . . . . . 1 2 . . . . . 7 1 . . . . . . 2 Heat Flow Errors 5 | . . . . . . . . . . 1 . . . . . 1 1 . . . . . . 2 Energy Discharges 8 | . . . . . . . . . . . . . . . . 6 1 . . . . . . 1 Parts Rejected 2 | . . . . . . . . . . . . . . . . . . . . . . . . 2 Data Loss (minor) 4 | . . . . . . . . . . . . . . . . 3 . . . . . . . 1 Data Loss (major) 2 | . . . . . . . . . . . . . . . . 1 . . . . . . . 1 Misfires 4 | . . . . . . . . . . . . . . . . 4 . . . . . . . . Alerts 2 | . . . . . . . . . . . . . . . . 2 . . . . . . . . Misdirections 3 | . . . . . . . . . . . . . . . . . . . . . . . . 3 Weapon Failures 2 | . . . . . . . . . . . . . . . . 2 . . . . . . . . Overload Shots . | . . . . . . . . . . . . . . . . . . . . . . . . . Overflow Damage 1593 | . . . 28 4 . 10 24 . 103 . . 73 178 744 177 33 . 52 79 . . 88 . . Projectiles 702 | . . . 28 . . 10 24 . 30 . . 73 178 150 177 . . 32 . . . . . . Explosions 128 | . . . . . . . . . 73 . . . . 2 . 33 . 20 . . . . . . Melee 763 | . . . . 4 . . . . . . . . . 592 . . . . 79 . . 88 . . Knockbacks 34 | . 1 . . 1 . . . 1 . . . 2 8 15 4 1 . . 1 . . . . . Impact 4 | . 1 . . 1 . . . 1 . . . . . . . . . . 1 . . . . . Kinetic 28 | . . . . . . . . . . . . 2 8 13 4 1 . . . . . . . . Secondary 2 | . . . . . . . . . . . . . . 2 . . . . . . . . . . Self-Inflicted Damage 161 | . . . . 2 . . . . 32 . . . . . . 79 . . . . . . . 48 Shots 2 | . . . . . . . . . 1 . . . . . . 1 . . . . . . . . Rammed 21 | 1 1 . 2 5 . 2 . 3 . . . . . . . . . . . . . . 1 6 Targets Rammed 23 | 1 1 . 2 6 . 3 . 3 . . . . . . . . . . . . . . 1 6 Kicked . | . . . . . . . . . . . . . . . . . . . . . . . . . Crushed 2 | . . . . 1 . 1 . . . . . . . . . . . . . . . . . . Highest Temperature 459 | . 12 20 87 54 . 36 81 342 135 55 . . . 212 459 186 178 196 199 148 . 199 . 288 Average Temperature 88 | . 7 6 20 23 . 18 26 191 61 33 . . . 75 154 80 69 101 131 78 . 131 . 95 Received Heat Transfer 2950 | . 87 201 285 36 . . 270 180 333 26 . 45 63 531 197 331 . 95 . . . 9 81 180 Effects 6 | . . . . . . . . 2 . . . . . . 4 . . . . . . . . . Shutdowns 4 | . . . . . . . . 1 . . . . . . 3 . . . . . . . . . Matter Decay 1 | . . . . . . . . 1 . . . . . . . . . . . . . . . . Short Circuit 1 | . . . . . . . . . . . . . . . 1 . . . . . . . . . Siege Activations 7 | . . . . . . . . . . . . . . 2 2 2 . 1 . . . . . . Total Turns 193 | . . . . . . . . . . . . . . 78 45 60 . 10 . . . . . . Longest Duration 44 | . . . . . . . . . . . . . . 44 27 40 . 10 . . . . . . Robots Corrupted 1 | . . . . . . . . . . . . . . . . . . 1 . . . . . . Combat Hostiles . | . . . . . . . . . . . . . . . . . . . . . . . . . Parts Fried 13 | . . . . . . . . . . . . . . 9 . . . 4 . . . . . . Impact Corruptions 19 | . . . . 2 . . . . . . . . . 11 . . . . 2 . . 4 . . Robots Melted 3 | . . . 1 . . . 1 1 . . . . . . . . . . . . . . . . Combat Hostiles 1 | . . . . . . . . 1 . . . . . . . . . . . . . . . . Parts Melted 15 | . . . 7 . . 3 2 3 . . . . . . . . . . . . . . . . Heat Transferred 7167 | . . . 1813 592 . 518 2294 851 814 . . . . . . . . 100 . . . . . 185 Parts Sabotaged . | . . . . . . . . . . . . . . . . . . . . . . . . . Parts Stolen 1 | . . . . . . . . . . . . . . . . . 1 . . . . . . . Parts Stripped . | . . . . . . . . . . . . . . . . . . . . . . . . . Power Chain Reactions 1 | . . . . . . . . . . . . . . . . . . 1 . . . . . . Alert | -11 -10 -10 -9 -9 -9 -8 -8 -7 -7 -7 -6 -6 -5 -5 -4 -4 -4 -3 -3 -2 -2 -1 -1 -1 ------- Run | Yrd Mat Min Mat Min Exi Min Mat Fac Gar Fac Fac DSF Fac Gar Fac Upp Upp Res Tes Res DSF Acc Gar Acc Peak Influence 866 | . 333 190 363 126 . 95 154 120 702 483 236 368 333 866 690 . . 225 97 66 51 279 187 365 Initial 454 | . . 82 5 74 . . . 15 21 368 236 165 193 233 454 . . 147 27 54 51 30 175 42 Average 167 | . 175 34 142 39 . 31 40 56 386 412 236 292 278 498 525 . . 147 66 62 51 144 110 153 Maximum Alert Level 3 | . 1 . 1 . . . . . 3 2 1 1 1 3 2 . . 1 . . . 1 . 1 Low Security (%) 68 | 100 57 100 78 100 . 100 100 100 11 . . 13 22 . . . . 74 100 100 100 72 100 74 Level 1 18 | . 42 . 21 . . . . . 41 48 100 86 77 43 . . . 26 . . . 27 . 25 Level 2 10 | . . . . . . . . . 38 51 . . . 28 100 . . . . . . . . . Level 3 2 | . . . . . . . . . 8 . . . . 28 . . . . . . . . . . Level 4 . | . . . . . . . . . . . . . . . . . . . . . . . . . Level 5 . | . . . . . . . . . . . . . . . . . . . . . . . . . High Security . | . . . . . . . . . . . . . . . . . . . . . . . . . Max Security . | . . . . . . . . . . . . . . . . . . . . . . . . . Sterilizations 1 | . . . . . . . . . . . . 1 . . . . . . . . . . . . Squads Dispatched 27 | . 5 . 2 1 . . 7 1 . 1 . 1 . . 2 . . 5 . . . 1 . 1 Investigation 10 | . 4 . 1 1 . . 3 . . . . . . . . . . 1 . . . . . . Extermination 4 | . . . . . . . . 1 . . . . . . 1 . . 1 . . . . . 1 Reinforcement 9 | . 1 . 1 . . . 3 . . 1 . 1 . . 1 . . . . . . 1 . . Assault 1 | . . . . . . . 1 . . . . . . . . . . . . . . . . . Garrison 3 | . . . . . . . . . . . . . . . . . . 3 . . . . . . Intercept . | . . . . . . . . . . . . . . . . . . . . . . . . . Searches Triggered . | . . . . . . . . . . . . . . . . . . . . . . . . . Construction Impeded . | . . . . . . . . . . . . . . . . . . . . . . . . . Haulers Reinforced . | . . . . . . . . . . . . . . . . . . . . . . . . . Active Scanning Responses . | . . . . . . . . . . . . . . . . . . . . . . . . . Cargo Convoy Interrupts . | . . . . . . . . . . . . . . . . . . . . . . . . . Stealth | -11 -10 -10 -9 -9 -9 -8 -8 -7 -7 -7 -6 -6 -5 -5 -4 -4 -4 -3 -3 -2 -2 -1 -1 -1 --------- Run | Yrd Mat Min Mat Min Exi Min Mat Fac Gar Fac Fac DSF Fac Gar Fac Upp Upp Res Tes Res DSF Acc Gar Acc Distress Signals 8 | . . . 2 . . . . . . . . . . . 2 . . . . . . 1 . 3 Communications Jammed . | . . . . . . . . . . . . . . . . . . . . . . . . . Distress Signals . | . . . . . . . . . . . . . . . . . . . . . . . . . Times Spotted 308 | . 13 4 37 22 . 4 30 5 23 4 . 9 5 22 14 9 6 12 1 . 1 39 12 36 Peak Tracking Total 20 | . 4 2 7 15 . 4 4 4 7 2 . 4 4 6 6 5 3 7 1 . 1 20 11 11 Tactical Retreats 28 | . 1 . 1 . . . . . 3 . . 2 . 4 1 . . 2 . . . 4 1 9 Traps | -11 -10 -10 -9 -9 -9 -8 -8 -7 -7 -7 -6 -6 -5 -5 -4 -4 -4 -3 -3 -2 -2 -1 -1 -1 ------- Run | Yrd Mat Min Mat Min Exi Min Mat Fac Gar Fac Fac DSF Fac Gar Fac Upp Upp Res Tes Res DSF Acc Gar Acc Traps Triggered 16 | . 1 . 1 . . . 3 1 4 . . 1 1 1 1 . . 1 . . . . 1 . Indirectly . | . . . . . . . . . . . . . . . . . . . . . . . . . Trap Hack Attempts . | . . . . . . . . . . . . . . . . . . . . . . . . . Triggered . | . . . . . . . . . . . . . . . . . . . . . . . . . Disarmed . | . . . . . . . . . . . . . . . . . . . . . . . . . Reprogrammed . | . . . . . . . . . . . . . . . . . . . . . . . . . Reused . | . . . . . . . . . . . . . . . . . . . . . . . . . Traps Extracted . | . . . . . . . . . . . . . . . . . . . . . . . . . Installed . | . . . . . . . . . . . . . . . . . . . . . . . . . Triggered . | . . . . . . . . . . . . . . . . . . . . . . . . . Machines | -11 -10 -10 -9 -9 -9 -8 -8 -7 -7 -7 -6 -6 -5 -5 -4 -4 -4 -3 -3 -2 -2 -1 -1 -1 ---------- Run | Yrd Mat Min Mat Min Exi Min Mat Fac Gar Fac Fac DSF Fac Gar Fac Upp Upp Res Tes Res DSF Acc Gar Acc Machines Disabled 11 | . . 1 2 . . . . 1 3 . . . . . 2 . . 1 . . . . . 1 Max in Single Turn 1 | . . . 1 . . . . 1 1 . . . . . 1 . . 1 . . . . . 1 Garrison Access 1 | . . . . . . . 1 . . . . . . . . . . . . . . . . . Garrison Relay 1 | . . . . . . . . . 1 . . . . . . . . . . . . . . . Machines Repaired . | . . . . . . . . . . . . . . . . . . . . . . . . . Machines Dismantled . | . . . . . . . . . . . . . . . . . . . . . . . . . Machines Sabotaged . | . . . . . . . . . . . . . . . . . . . . . . . . . Overloaded Fab Kills . | . . . . . . . . . . . . . . . . . . . . . . . . . Hacking | -11 -10 -10 -9 -9 -9 -8 -8 -7 -7 -7 -6 -6 -5 -5 -4 -4 -4 -3 -3 -2 -2 -1 -1 -1 --------- Run | Yrd Mat Min Mat Min Exi Min Mat Fac Gar Fac Fac DSF Fac Gar Fac Upp Upp Res Tes Res DSF Acc Gar Acc Machines Accessed 47 | . 7 2 10 2 2 . 8 1 2 1 1 . 2 1 1 1 . 2 2 1 . 1 . . Terminals 30 | . 5 1 7 . . . 6 . 2 1 1 . 1 1 1 . . 1 2 1 . . . . Fabricators . | . . . . . . . . . . . . . . . . . . . . . . . . . Repair Stations 4 | . . . 2 . . . 1 . . . . . . . . . . 1 . . . . . . Recycling Units 2 | . 2 . . . . . . . . . . . . . . . . . . . . . . . Scanalyzers 2 | . . . 1 . . . 1 . . . . . . . . . . . . . . . . . Garrison Access 3 | . . . . . . . . 1 . . . . 1 . . . . . . . . 1 . . Total Hacks 125 | . 20 4 36 2 2 . 25 2 5 2 1 . 3 3 5 1 . 4 8 1 . 1 . . Successful 68 | . 8 3 22 2 2 . 14 1 3 1 1 . 2 . 2 1 . 1 3 1 . 1 . . Failed 57 | . 12 1 14 . . . 11 1 2 1 . . 1 3 3 . . 3 5 . . . . . Catastrophic 8 | . 2 . 1 . . . 1 . . 1 . . 1 . . . . 1 1 . . . . . Database Lockouts . | . . . . . . . . . . . . . . . . . . . . . . . . . Manual 59 | . 16 3 13 . 1 . 10 . 1 2 . . 1 . 4 . . . 8 . . . . . Terminals 94 | . 18 3 27 . . . 17 . 5 2 1 . 2 3 5 . . 2 8 1 . . . . Fabricators . | . . . . . . . . . . . . . . . . . . . . . . . . . Repair Stations 14 | . . . 8 . . . 4 . . . . . . . . . . 2 . . . . . . Recycling Units 2 | . 2 . . . . . . . . . . . . . . . . . . . . . . . Scanalyzers 5 | . . . 1 . . . 4 . . . . . . . . . . . . . . . . . Garrison Access 4 | . . . . . . . . 2 . . . . 1 . . . . . . . . 1 . . Terminal Hacks 37 | . 5 3 11 2 2 . 4 . 3 1 1 . . . 1 1 . 1 1 1 . . . . Record 3 | . . . 2 . 1 . . . . . . . . . . . . . . . . . . . Part Schematic 3 | . 1 2 . . . . . . . . . . . . . . . . . . . . . . Robot Schematic 1 | . 1 . . . . . . . . . . . . . . . . . . . . . . . Robot Analysis 5 | . 2 . 3 . . . . . . . . . . . . . . . . . . . . . Prototype ID Bank 5 | . 1 . 3 . . . 1 . . . . . . . . . . . . . . . . . Open Door 4 | . . 1 . 2 . . . . . . . . . . . 1 . . . . . . . . Open DSF 2 | . . . . . . . . . . . 1 . . . . . . . . 1 . . . . Level Access Points 2 | . . . . . . . . . . 1 . . . . . . . . 1 . . . . . Branch Access Points 2 | . . . . . . . 1 . . . . . . . . . . 1 . . . . . . Emergency Access Points 1 | . . . . . . . . . 1 . . . . . . . . . . . . . . . Terminal Index 1 | . . . . . . . . . . . . . . . 1 . . . . . . . . . Alert Level 1 | . . . . . . . 1 . . . . . . . . . . . . . . . . . Unreport Threat 1 | . . . 1 . . . . . . . . . . . . . . . . . . . . . Locate Traps 1 | . . . 1 . . . . . . . . . . . . . . . . . . . . . Recall Assault 1 | . . . . . . . 1 . . . . . . . . . . . . . . . . . Hauler Manifests 1 | . . . 1 . . . . . . . . . . . . . . . . . . . . . Garrison Registry 1 | . . . . . . . . . 1 . . . . . . . . . . . . . . . Patrol Navigation 1 | . . . . . . . . . 1 . . . . . . . . . . . . . . . Derelict Proto ID Bank 1 | . . . . . 1 . . . . . . . . . . . . . . . . . . . Fabricator Hacks . | . . . . . . . . . . . . . . . . . . . . . . . . . Repair Station Hacks 10 | . . . 6 . . . 4 . . . . . . . . . . . . . . . . . Scan Component 5 | . . . 3 . . . 2 . . . . . . . . . . . . . . . . . Repair 5 | . . . 3 . . . 2 . . . . . . . . . . . . . . . . . Recycling Unit Hacks . | . . . . . . . . . . . . . . . . . . . . . . . . . Scanalyzer 5 | . . . 1 . . . 4 . . . . . . . . . . . . . . . . . Insert Component 3 | . . . 1 . . . 2 . . . . . . . . . . . . . . . . . Analyze 2 | . . . . . . . 2 . . . . . . . . . . . . . . . . . Garrison Access Hacks 3 | . . . . . . . . 1 . . . . 1 . . . . . . . . 1 . . Unlock Access 3 | . . . . . . . . 1 . . . . 1 . . . . . . . . 1 . . Unauthorized Hacks 13 | . 3 . 4 . . . 2 . . . . . 1 . 1 . . . 2 . . . . . Terminals 11 | . 1 . 4 . . . 2 . . . . . 1 . 1 . . . 2 . . . . . Assimilate 1 | . . . 1 . . . . . . . . . . . . . . . . . . . . . Botnet 9 | . 1 . 2 . . . 2 . . . . . 1 . 1 . . . 2 . . . . . Operators 1 | . . . 1 . . . . . . . . . . . . . . . . . . . . . Fabricators . | . . . . . . . . . . . . . . . . . . . . . . . . . Repair Stations . | . . . . . . . . . . . . . . . . . . . . . . . . . Recycling Units 2 | . 2 . . . . . . . . . . . . . . . . . . . . . . . Tunnel 2 | . 2 . . . . . . . . . . . . . . . . . . . . . . . Scanalyzers . | . . . . . . . . . . . . . . . . . . . . . . . . . Garrison Access . | . . . . . . . . . . . . . . . . . . . . . . . . . Data Cores Recovered 1 | . . . . . . . . . . . . . . . . . . . 1 . . . . . Used . | . . . . . . . . . . . . . . . . . . . . . . . . . Hacking Detections 33 | . 5 1 7 . . . 8 1 2 1 . . 2 1 1 . . 2 2 . . . . . Full Trace Events 6 | . 1 . . . . . 3 . . . . . . 1 . . . 1 . . . . . . Feedback Events . | . . . . . . . . . . . . . . . . . . . . . . . . . Feedback Blocked . | . . . . . . . . . . . . . . . . . . . . . . . . . Robot Schematics Acquired 1 | . 1 . . . . . . . . . . . . . . . . . . . . . . . Robots Built . | . . . . . . . . . . . . . . . . . . . . . . . . . Authchips . | . . . . . . . . . . . . . . . . . . . . . . . . . Time . | . . . . . . . . . . . . . . . . . . . . . . . . . Total Robot Build Rating . | . . . . . . . . . . . . . . . . . . . . . . . . . Part Schematics Acquired 5 | . 1 2 . . . . 2 . . . . . . . . . . . . . . . . . Parts Built . | . . . . . . . . . . . . . . . . . . . . . . . . . Authchips . | . . . . . . . . . . . . . . . . . . . . . . . . . Time . | . . . . . . . . . . . . . . . . . . . . . . . . . Total Part Build Rating . | . . . . . . . . . . . . . . . . . . . . . . . . . Parts Repaired 5 | . . . 3 . . . 2 . . . . . . . . . . . . . . . . . Time 167 | . . . 78 . . . 89 . . . . . . . . . . . . . . . . . Parts Recycled . | . . . . . . . . . . . . . . . . . . . . . . . . . Recycled Matter . | . . . . . . . . . . . . . . . . . . . . . . . . . Retrieved Matter . | . . . . . . . . . . . . . . . . . . . . . . . . . Retrieved Components . | . . . . . . . . . . . . . . . . . . . . . . . . . Parts Scanalyzed 2 | . . . . . . . 2 . . . . . . . . . . . . . . . . . Part Schematics Acquired 2 | . . . . . . . 2 . . . . . . . . . . . . . . . . . Parts Damaged . | . . . . . . . . . . . . . . . . . . . . . . . . . Bothacking | -11 -10 -10 -9 -9 -9 -8 -8 -7 -7 -7 -6 -6 -5 -5 -4 -4 -4 -3 -3 -2 -2 -1 -1 -1 ------------ Run | Yrd Mat Min Mat Min Exi Min Mat Fac Gar Fac Fac DSF Fac Gar Fac Upp Upp Res Tes Res DSF Acc Gar Acc Used RIF Installer 2 | . . . . . . . . . 1 . . . . 1 . . . . . . . . . . Threat Obfuscator 1 | . . . . . . . . . . . . . . 1 . . . . . . . . . . Robots Hacked . | . . . . . . . . . . . . . . . . . . . . . . . . . Non-combat . | . . . . . . . . . . . . . . . . . . . . . . . . . Combat . | . . . . . . . . . . . . . . . . . . . . . . . . . Robot Hacks Applied . | . . . . . . . . . . . . . . . . . . . . . . . . . Relay Couplers Released 6 | . . . . . . . 1 . 5 . . . . . . . . . . . . . . . Machine Destruction 6 | . . . . . . . 1 . 5 . . . . . . . . . . . . . . . Attached 1 | . . . . . . . . . . . . . . . . . . 1 . . . . . . Fabnet Peak Effective % . | . . . . . . . . . . . . . . . . . . . . . . . . . Robots Rewired 1 | . . . . . . . . . . . . . . . . 1 . . . . . . . . Allies Hacked . | . . . . . . . . . . . . . . . . . . . . . . . . . Hacks Repelled . | . . . . . . . . . . . . . . . . . . . . . . . . . Allies | -11 -10 -10 -9 -9 -9 -8 -8 -7 -7 -7 -6 -6 -5 -5 -4 -4 -4 -3 -3 -2 -2 -1 -1 -1 -------- Run | Yrd Mat Min Mat Min Exi Min Mat Fac Gar Fac Fac DSF Fac Gar Fac Upp Upp Res Tes Res DSF Acc Gar Acc Total Allies 3 | . . 1 1 . . . . . . . . . . . . 1 . . . . . . . . Largest Group 1 | . . 1 1 1 1 1 1 . . . . . . . . 1 1 1 . . . . . . Highest-Rated Group 47 | . . 31 10 10 10 10 10 . . . . . . . . 47 47 47 . . . . . . Highest-Rated Ally 47 | . . 31 10 10 10 10 10 . . . . . . . . 47 47 47 . . . . . . Total Orders 23 | . . . 2 2 . 2 8 . . . . . . . . 3 3 3 . . . . . . STAY 4 | . . . 1 1 . 1 1 . . . . . . . . . . . . . . . . . FOLLOW 4 | . . . 1 1 . 1 1 . . . . . . . . . . . . . . . . . EXPLORE 13 | . . . . . . . 5 . . . . . . . . 3 2 3 . . . . . . RETURN 2 | . . . . . . . 1 . . . . . . . . . 1 . . . . . . . Ally Attacks 29 | . . 6 . . . . 16 . . . . . . . . . 3 4 . . . . . . Total Damage 253 | . . 43 . . . . . . . . . . . . . . 91 119 . . . . . . Kills 2 | . . 1 . . . . . . . . . . . . . . 1 . . . . . . . Allies Corrupted . | . . . . . . . . . . . . . . . . . . . . . . . . . Allies Melted . | . . . . . . . . . . . . . . . . . . . . . . . . . Intel | -11 -10 -10 -9 -9 -9 -8 -8 -7 -7 -7 -6 -6 -5 -5 -4 -4 -4 -3 -3 -2 -2 -1 -1 -1 ------- Run | Yrd Mat Min Mat Min Exi Min Mat Fac Gar Fac Fac DSF Fac Gar Fac Upp Upp Res Tes Res DSF Acc Gar Acc Robot Analysis Total 5 | . 2 . 3 . . . . . . . . . . . . . . . . . . . . . Derelict Logs Recovered 6 | . . 1 . 3 . . . . . . . . . . . 2 . . . . . . . . Drone Launches 29 | . . . . . . . 19 . . . . . . . . 4 2 4 . . . . . . Drone Recoveries 12 | . . . . . . . 3 . . . . . . . . 3 3 3 . . . . . . Exploration | -11 -10 -10 -9 -9 -9 -8 -8 -7 -7 -7 -6 -6 -5 -5 -4 -4 -4 -3 -3 -2 -2 -1 -1 -1 ------------- Run | Yrd Mat Min Mat Min Exi Min Mat Fac Gar Fac Fac DSF Fac Gar Fac Upp Upp Res Tes Res DSF Acc Gar Acc Turns Passed 16332 | 110 721 1290 2208 1414 494 800 2635 613 1157 368 62 265 340 947 670 776 123 500 66 15 27 159 63 509 Spaces Moved 9429 | 64 342 517 1033 826 304 472 1007 270 610 187 51 176 123 414 324 425 50 446 194 58 94 532 124 786 Core 281 | 4 . . . 1 . . . . . . . . . . . . . . . . . . 73 203 Treads 7018 | 60 342 517 1033 772 304 472 1007 270 610 122 . 20 123 414 324 425 50 153 . . . . . . Legs . | . . . . . . . . . . . . . . . . . . . . . . . . . Wheels 325 | . . . . 53 . . . . . 65 51 156 . . . . . . . . . . . . Hover 518 | . . . . . . . . . . . . . . . . . . . . . . . . 518 Flight 1287 | . . . . . . . . . . . . . . . . . . 293 194 58 94 532 51 65 Fastest Speed 22 | 50 160 240 160 115 160 160 145 145 145 115 115 115 240 160 160 160 160 25 25 25 25 22 37 40 Average Speed 148 | 153 173 240 170 158 160 160 228 202 166 192 115 126 240 165 160 160 160 73 25 25 25 22 47 52 Slowest Speed 950 | 160 240 240 240 950 160 160 240 225 230 230 115 400 240 240 160 160 160 440 25 25 25 37 100 260 Overloaded Moves . | . . . . . . . . . . . . . . . . . . . . . . . . . Propulsion Burnouts . | . . . . . . . . . . . . . . . . . . . . . . . . . Robots Hopped 22 | . . . . . . . . . . . . . . . . . . 5 . . . 11 1 5 Cave-ins Triggered . | . . . . . . . . . . . . . . . . . . . . . . . . . Exploration Rate (%) 45 | 6 60 98 82 98 70 75 81 8 78 10 2 73 5 39 8 81 53 15 28 2 85 19 24 30 Regions Visited 24 Branch Regions 7 Pre-discovered Areas 4 | . 2 1 . . 1 . . . . . . . . . . . . . . . . . . . Known Exits Taken 10 | . . . . 1 . . . 1 . 1 1 . 1 . . 1 . 1 1 1 . 1 . . Unknown Exits Taken 9 | 1 1 1 1 . 1 1 1 . . . . . . . 1 . 1 . . . . . . . Scrap Searched 7 | . . 1 . 2 . 2 . . . . . . . . . 2 . . . . . . . . Spaces Dug 33 | . . . . . . . 5 . 2 . . . . 3 1 1 . 6 2 . . 7 . 6 Terrain Destroyed 243 | . . . . 68 . . 11 . 24 6 . 6 7 23 17 49 2 13 2 . . 7 . 8 Melee 15 | . . . . . . . . . . . . . . . . . . 6 2 . . 7 . . Projectile 94 | . . . . 1 . . 11 . 5 6 . 6 7 22 17 8 2 1 . . . . . 8 AOE 134 | . . . . 67 . . . . 19 . . . . 1 . 41 . 6 . . . . . . Terrain Rammed 2 | . . . . . . . . . 1 . . . . . . . . . . . . . . 1 Walls Destroyed . | . . . . . . . . . . . . . . . . . . . . . . . . . Machines Disabled 1 | . . . . . . . . . 1 . . . . . . . . . . . . . . . Actions | -11 -10 -10 -9 -9 -9 -8 -8 -7 -7 -7 -6 -6 -5 -5 -4 -4 -4 -3 -3 -2 -2 -1 -1 -1 --------- Run | Yrd Mat Min Mat Min Exi Min Mat Fac Gar Fac Fac DSF Fac Gar Fac Upp Upp Res Tes Res DSF Acc Gar Acc Total 10818 | 73 406 535 1302 891 312 492 1244 304 693 197 54 214 137 536 409 471 89 570 203 57 96 543 128 862 Wait 507 | . 9 . 119 4 3 2 139 5 14 . 2 13 1 29 33 12 29 59 . . . 9 . 25 Move 9366 | 64 341 516 1032 825 303 471 1006 270 607 186 50 175 123 413 323 424 49 435 193 57 93 512 122 776 Hop 20 | . . . . . . . . . . . . . . . . . . 5 . . . 9 1 5 Pick Up 94 | 3 9 2 14 12 2 1 9 3 5 2 . 7 1 7 3 2 1 7 . . . 1 . 3 Fast Attach 83 | 6 1 . 7 . . 1 5 1 1 2 . 3 1 5 8 2 2 13 3 . 2 2 . 18 Attach 59 | . . 1 3 4 1 . 5 2 5 . 2 3 1 5 6 6 3 6 . . . 1 . 5 Detach 34 | . . . 3 . . 1 . . 2 . . 1 . 4 3 2 3 7 3 . . . . 5 Swap 59 | . 7 . 12 6 1 . 12 1 7 1 . 1 . 3 2 . . 6 . . . . . . Drop 112 | . 4 . 21 12 2 1 17 3 7 6 . 5 . 12 4 . . 11 . . 1 . 1 5 Fire 407 | . 34 16 89 22 . 12 51 16 35 . . 4 10 38 27 22 2 15 . . . . . 14 Melee 39 | . . . . . . . . . . . . . . 20 . . . 6 4 . . 9 . . Ram 8 | . . . . 1 . . . . 1 . . . . . . . . . . . . . . 6 Kick . | . . . . . . . . . . . . . . . . . . . . . . . . . Crush 14 | . 1 . 2 5 . 3 . 3 . . . . . . . . . . . . . . . . Escape Stasis 12 | . . . . . . . . . 8 . . . . . . . . . . . . . 4 . Rewire 4 | . . . . . . . . . 1 . . 2 . . . 1 . . . . . . . . Trap . | . . . . . . . . . . . . . . . . . . . . . . . . . Miscellaneous . | . . . . . . . . . . . . . . . . . . . . . . . . . Route ------- -11/Scrapyard -10/Materials (discovered 3 exits: *Mat x2 / *Min) -10/Mines (discovered 2 exits: *Mat x2) -9/Materials (discovered 4 exits: *Mat x2 / *Min x2) -9/Mines (discovered 3 exits: *Mat x2 / *Exi) -9/Exiles -8/Mines (discovered 2 exits: *Mat x2) -8/Materials (discovered 2 exits: *Fac x2) -7/Factory (discovered 2 exits: *Fac / Gar) -7/Garrison (discovered 3 exits: *Fac x3) -7/Factory (discovered 4 exits: *Fac x4) -6/Factory -6/DSF -5/Factory -5/Garrison -4/Factory -4/Upper Caves -4/Upper Caves -3/Research (discovered 2 exits: *Tes x2) -3/Testing -2/Research -2/DSF -1/Access -1/Garrison -1/Access History --------- Turn | Location | Event 3 | -11/Scrapyard | Discovered new exit (range 15) 111 | -11/Scrapyard | Entered Materials 280 | -10/Materials | Discovered new exit (range 6) 301 | -10/Materials | Build established: Mutant 540 | -10/Materials | Discovered new exit (range 18) 742 | -10/Materials | Discovered new exit (range 9) 832 | -10/Materials | Entered Mines 835 | -10/Mines | Received a Mining Laser from a helpful Derelict 955 | -10/Mines | Learned location of Zion (-7) 957 | -10/Mines | Discovered new exit (range 8) 985 | -10/Mines | Found the Drone Emporium 996 | -10/Mines | Found Prototype Device 1354 | -10/Mines | A weapon hastily lodged in a ceiling crevice suddenly fell to the ground 2093 | -10/Mines | Discovered new exit (range 3) 2122 | -10/Mines | Entered Materials 2122 | -9/Materials | Evolved 2 slots: Propulsion x1, Utility x1 2556 | -9/Materials | Build established: Scavenger-Mutant 2653 | -9/Materials | Identified Bomb Drone Bay 2728 | -9/Materials | Discovered new exit (range 14) 2908 | -9/Materials | Discovered new exit (range 13) 2990 | -9/Materials | Discovered new exit (range 17) 3083 | -9/Materials | Repaired Lgt. Treads 3110 | -9/Materials | Repaired Lgt. Treads 3138 | -9/Materials | Repaired Lgt. Treads 3282 | -9/Materials | Discovered new exit (range 14) 4330 | -9/Materials | Entered Mines 4330 | -9/Mines | Accompanied by 1 ally 4378 | -9/Mines | Learned location of 1 exit from Proximity Caves 4449 | -9/Mines | Met a Derelict who couldn't figure out how to use a Trap Extractor 4470 | -9/Mines | Found Powered Armor 4519 | -9/Mines | Discovered new exit (range 5) 4670 | -9/Mines | Assembled infested the area 4740 | -9/Mines | Destroyed 19 combat bots 4747 | -9/Mines | Lost 4 parts (3n1u) 4772 | -9/Mines | Found a damaged Exp. Sensor Array with a note attached 4774 | -9/Mines | Found Prototype Device 4785 | -9/Mines | Core integrity fell below 50% 4856 | -9/Mines | Identified exit to Exiles 5092 | -9/Mines | Met a Derelict shopkeep closing up shop 5101 | -9/Mines | Learned Materials interactive machine intel 5171 | -9/Mines | Discovered new exit (range 8) 5178 | -9/Mines | Received a Rocket Launcher from a helpful Derelict 5277 | -9/Mines | Deemed a non-threat by the Exiles lab entrance 5744 | -9/Mines | Entered Exiles 5744 | -9/Exiles | Accompanied by 1 ally 5784 | -9/Exiles | Met 8R-AWN 5810 | -9/Exiles | Met EX-HEX 5872 | -9/Exiles | Met EX-DEC 5908 | -9/Exiles | Met EX-BIN 5934 | -9/Exiles | Aligned with FarCom system 5935 | -9/Exiles | Given EX-Vault access code 5972 | -9/Exiles | Opened EX-Vault 5989 | -9/Exiles | Found AWS/Gauss 5996 | -9/Exiles | Found Modified TNC 6027 | -9/Exiles | Warned to stay clear of 0b10 Research branches 6225 | -9/Exiles | Discovered new exit (range 10) 6238 | -9/Exiles | Stole two prototypes: Modified TNC, AWS/Gauss 6238 | -9/Exiles | Entered Mines 6238 | -8/Mines | Accompanied by 1 ally 6402 | -8/Mines | Discovered new exit (range 7) 6580 | -8/Mines | Discovered new exit (range 9) 7038 | -8/Mines | Entered Materials 7038 | -8/Materials | Accompanied by 1 ally 7038 | -8/Materials | Evolved 2 slots: Utility x2 7039 | -8/Materials | Loaded intel: 19 interactive machine locations 7415 | -8/Materials | Build established: Mutant 7435 | -8/Materials | Lost 4 allies 7658 | -8/Materials | Discovered new exit (range 3) 7796 | -8/Materials | Lost 7 allies 7949 | -8/Materials | Lost 4 allies 8256 | -8/Materials | Repaired Adv. Treads 8313 | -8/Materials | Repaired Adv. Beam Cannon 8683 | -8/Materials | Discovered new exit (range 5) 9026 | -8/Materials | Identified Exp. Sensor Array 9673 | -8/Materials | Entered Factory 9673 | -7/Factory | Evolved 2 slots: Propulsion x1, Utility x1 9675 | -7/Factory | FarCom data flow suspended 10208 | -7/Factory | Discovered new exit (range 15) 10286 | -7/Factory | Identified exit to Garrison 10286 | -7/Factory | Entered Garrison 10296 | -7/Garrison | Triggered checkpoint 10470 | -7/Garrison | Triggered checkpoint 10710 | -7/Garrison | Discovered new exit (range 12) 10815 | -7/Garrison | Discovered new exit (range 15) 10815 | -7/Garrison | Discovered new exit (range 71) 10815 | -7/Garrison | Discovered new exit (range 88) 10921 | -7/Garrison | Destroyed 7 combat bots 11060 | -7/Garrison | Attempted to access garrison exit controls, blocked by remote lockdown 11189 | -7/Garrison | Installed Relay Interface Framework 11270 | -7/Garrison | Triggered checkpoint 11275 | -7/Garrison | Garrison Relay disabled 11332 | -7/Garrison | Triggered checkpoint 11443 | -7/Garrison | Entered Factory 11632 | -7/Factory | Identified exit to Factory 11811 | -7/Factory | Entered another Factory area 11811 | -6/Factory | Evolved 2 slots: Utility x2 11872 | -6/Factory | Identified exit to DSF 11873 | -6/Factory | Entered DSF 11907 | -6/DSF | Additional patrols routed to DSF 11955 | -6/DSF | Discovered new exit (range 15) 12059 | -6/DSF | Sterilization system engaged 12079 | -6/DSF | Ambient heat levels rising (+10) 12094 | -6/DSF | Ambient heat levels rising (+10) 12109 | -6/DSF | Ambient heat levels rising (+10) 12124 | -6/DSF | Ambient heat levels rising (+10) 12138 | -6/DSF | Entered Factory 12138 | -5/Factory | Evolved 2 slots: Weapon x2 12417 | -5/Factory | Build established: Hacker-Tank 12478 | -5/Factory | Identified exit to Garrison 12478 | -5/Factory | Entered Garrison 12614 | -5/Garrison | Triggered checkpoint 12820 | -5/Garrison | Spotted B-75 Beast 12879 | -5/Garrison | Destroyed B-75 Beast 13012 | -5/Garrison | Triggered checkpoint 13013 | -5/Garrison | Triggered checkpoint 13043 | -5/Garrison | Destroyed 7 combat bots 13301 | -5/Garrison | Discovered new exit (range 15) 13325 | -5/Garrison | Expanded RIF knowledge: Threat Obfuscation 13425 | -5/Garrison | Entered Factory 13425 | -4/Factory | Evolved 2 slots: Power x1, Utility x1 13838 | -4/Factory | Found Prototype Slashing Weapon 13838 | -4/Factory | Identified Molecular Scythe 13898 | -4/Factory | Build established: Scavenger-Tank 13966 | -4/Factory | Discovered new exit (range 8) 14095 | -4/Factory | Entered Upper Caves 14125 | -4/Upper Caves | System corruption reached 10% 14139 | -4/Upper Caves | Lost 6 parts (1n4u1w) 14193 | -4/Upper Caves | Learned Research security intel 14234 | -4/Upper Caves | Identified exit to Upper Caves 14286 | -4/Upper Caves | Build established: Tank 14562 | -4/Upper Caves | Attracted the attention of an 0b10 outpost 14871 | -4/Upper Caves | Entered another Upper Caves area 14871 | -4/Upper Caves | Accompanied by 2 allies 14871 | -4/Upper Caves | Spotted 51-TXS(f) 14871 | -4/Upper Caves | Spotted 5I-0VA(f) 14872 | -4/Upper Caves | Encountered a Master Thief 14872 | -4/Upper Caves | Encountered a Master Thief 14872 | -4/Upper Caves | Spotted YV-9LO(f) 14874 | -4/Upper Caves | Encountered a Master Thief 14874 | -4/Upper Caves | Adv. Heat Sink stolen by Master Thief 14875 | -4/Upper Caves | Destroyed 51-TXS(f) 14877 | -4/Upper Caves | Allies destroyed YV-9LO(f) 14943 | -4/Upper Caves | Discovered new exit (range 12) 14994 | -4/Upper Caves | Entered Research 14994 | -3/Research | Accompanied by 1 ally 14994 | -3/Research | Evolved 2 slots: Propulsion x2 15195 | -3/Research | Garrison activated, responded to threat 15214 | -3/Research | Identified exit to Testing 15383 | -3/Research | Found Prototype Processor 15383 | -3/Research | Identified Exp. Melee Analysis Suite 15385 | -3/Research | Found Exp. Melee Analysis Suite 15387 | -3/Research | Found Exp. Melee Analysis Suite 15389 | -3/Research | Found Exp. Melee Analysis Suite 15494 | -3/Research | Entered Testing 15532 | -3/Testing | Identified exit to Research 15560 | -3/Testing | Entered Research 15560 | -2/Research | Evolved 2 slots: Utility x2 15575 | -2/Research | Identified exit to DSF 15575 | -2/Research | Entered DSF 15596 | -2/DSF | Discovered new exit (range 15) 15602 | -2/DSF | Entered Access 15602 | -1/Access | Evolved 2 slots: Propulsion x1, Utility x1 15622 | -1/Access | Spotted B-99 Colossus 15761 | -1/Access | Identified exit to Garrison 15761 | -1/Access | Entered Garrison 15789 | -1/Garrison | Spotted B-99 Colossus 15790 | -1/Garrison | Triggered checkpoint 15799 | -1/Garrison | Core integrity fell below 50% 15810 | -1/Garrison | Discovered new exit (range 10) 15824 | -1/Garrison | Entered Access 15829 | -1/Access | Lost 21 parts (2p7n10u2w) 16088 | -1/Access | Build established: Mutant 16129 | -1/Access | Lost 4 parts (1p1n1u1w) 16133 | -1/Access | System corruption reached 10% 16264 | -1/Access | Core integrity fell below 20% 16328 | -1/Access | Lost 5 parts (1p2n2u) 16333 | -1/Access | Core destroyed Last Messages --------------- 16289_ Antigrav Array destroyed. 16289_ Slammed into P-80 Master. 16290_ Slug penetrates Wall. 16291_ Dropped Nova Cannon. 16291_ Stasis Canceller destroyed. 16292_ Slammed into P-80 Master. 16292_ Antigrav Array destroyed. 16295_ Penetrated by Slug. 16295_ Lyr. Medium Armor Plating destroyed. 16295_ P-80 Master resets P-80 Master, system corruption cleaned. 16297_ ,XHZ4G==&N,PGJSOV5SMFDF1N1 16297_ Quantum Reactor destroyed. 16298_ P-80 Master resets G-73 Enforcer, system corruption cleaned. 16315_ System corrupted: Component data lost. 16324_ ALERT: Rogue bot located, Programmers report to Access Zone 5C. 16331_ XB7 LT=DAUKLB,QWYO2IAJ4Y:2ZDIWNTGOBWV:P 16332_ Terminal disabled. 16333_ Slammed into Wall. 16333_ Destabilizing: System corrupted (+1). 16333_ Destabilizing: Core damaged (-80). Map ----- +----------------------------------------------------+ | #??### "" [# #??#?#?????#???????????? | | ??#?## # ####?#?????????????????? | | ?#?#?# # ???????????????????? | | ##?########## =!! ? ?????????????????? | | ######???#### =! ? ? ????????????? | | ?? ???# =! ? ??????????????? | | ? ?# #############?#???????????????????? | | ? # ##?#####?#?####???????????????????? | | ??# #?##?##??###?#?#???##?????????????? | | # ############???#?###??#???????????? | | + ? ?????????????????? | | # ? ? ???? ?????????? | | ??# ########+###??? ?? ?? "???????????? | | ? # #? ?? ?? ??#?#?????? ?????????????? | | ?? # ## ????? ##???? ?? ????????????? | | ??? ? # ##?? ? ??#?#?? ? ??????????????? | | ? ? ?# #?? ??? ?????#?? ????????#?????? | | ?#??#??##??## ## ?? ??? ???? ????????????? | | #????##??#### #? ? ? ?#?#?? ??? ????????????? | | ?????### ???# ##? ? ? ? ????????""???????#?????? | | ??#?####????# #????? ? ?#? ???? ? ????????????? | | ??? ?? # #???????#####? ???????????????????? | | ? ??? ??? ?# ############?????"""?" ???????????? | | ?? ?? ? # # ! ##?? "????"????#???????? | | ? ?? ??? ? # # = #?#?????"??????????????? | | ? ?? ??? ?# # @##? ???? ?? #???????#?? | | ??????? ?? # # #?# ?? ???????????????? | | "?"? ? ?? ?# # #?#??"???????#????#?#??? | | ???"? ? ?# # "" #?# ?? ???? ??#????????? | | ??? ??? ???+ p ""T"" #?#??"""??????????#????? | | ?? ???????# # """ ###??"????"??#?????????? | | ??? ?? ? # + #??""????"?"???????????? | | ? ? ? ?????+ # #?#?"?""""??????????#??? | | #### ???##?##+#############???? ?? ?????#???????? | | ##?##??#?#? ???#?#????#??????????????#???????? | | ??#????#?# ! #???#####???? ?????????????????? | | ??????#??# """ #?##????#?#??? ? ?? ???????????? | | ??###????# "T" #??#????##??? ?????????????????? | | #??????#?# #?#?#??????? ?????????????????? | | ????#?##?# ######???????????? ? ??#???????? | | ???????### ! ##?###????#??#??? ?????????????? | | ##?#????## = #?????????? ??? ????? ?????????? | | ????????## # ? ???? ? ? ????????????????? | | ????#?#??########??? ???? ?? ???????????????????? | | ?#????????? #???##??? ???? ???????????????????? | | ???????#??????#??#?? ? ??? ?? ?#? ? ?????????????? | | ##?#??????#??? ?? #???? ????? ?#? ???????????????? | | ???#?????????##??????????????????????????????????? | | ??????#???????????#??? ? ???????????????????????? | | ????#????#??#???#???????? ?????????????????????? | +----------------------------------------------------+ Best States ------------- Heat Dissipation 83 Coolant Potential 100 Energy Generation 41 Energy Capacity 525 Matter Stores 300 Matter Capacity 300 Sight Range 18 Robot Scan Range 20 Terrain Scan Range 24 Terrain Scan Density 210 ECM Strength 1 Cloak Strength 3 Additional Mass Support 12 Armor Coverage 900 Resistance: KI 25 Resistance: TH 25 Propulsion Shielding 66 Evasion (%) 65 Targeting Accuracy 8 Melee Accuracy 36 Recoil Reduction 6 Offensive Hacking 34 Defensive Hacking 10 Relay Coupler Types 1 Relay Coupler Value 23 Authchip Count 2 Item Schematics ----------------- Cargo Storage Unit | -10/Materials | Hacked Huge Storage Unit | -10/Mines | Hacked Hcp. Matter Pod | -10/Mines | Hacked Exp. Sensor Array | -8/Materials | Scanalyzed Hrd. Heavy Armor Plating | -8/Materials | Scanalyzed Robot Schematics ------------------ M-13 Machinist | -10/Materials | Hacked Fabricated ------------ Nothing Alien Tech Used ----------------- None Achievements -------------- None Challenges ------------ None Game ------ Seed BarrageRemoteReconfigurator Manual? 0 Play Time 01:34:56 Cumulative 309.5 hours Start 2024.04.05 @ 08:56:52 End 2024.04.05 @ 10:41:14 Sessions 1 Manual Loads 0 Difficulty Rogue Special Mode None Game No. 211 Rogue 211 Adventurer 0 Explorer 0 Win Type - Total 14 Types 9/1/1/1/1/0/0/1/0 Lore% 73 Gallery% 83 Achievement% 72 Wizard Run 0 Options --------- Layout 0 ASCII 0 Keyboard 1 Movement Numpad Keybinds 0 Fullscreen 2 Font 18/SmallcapsGlow Map View 76x50 Zoom Use 0% Tactical HUD 1 Map Filters NONE Filters NONE Steam 1 RUN: fe340320-6949-421d-a493-f84d2b102f3a